bitfinex-derivatives/quotes_SOLF0:USTF0_20260218
["timestamp","ask_amount","ask_price","bid_price","bid_amount"]
[1771413913258,8.01300831,83.518,83.47,2.0629219]
[1771413913458,2.0629219,83.51,83.465,75.4]
[1771413913655,10.13506413,83.51,83.465,75.4]
[1771413914458,2.0629219,83.52,83.47,2.0629219]
[1771413914653,8.07414587,83.519,83.465,75.4]
[1771413914854,8.07414587,83.519,83.47,2.0629219]
[1771413915659,2.0629219,83.53,83.48,2.0629219]
[1771413915863,8.07366374,83.532,83.49,2.0629219]
[1771413916256,21.50802773,83.63,83.425,65.74379224]
[1771413916257,8.07366374,83.546,83.5,2.0629219]
[1771413916753,8.13297359,83.537,83.49,2.0629219]
[1771413917056,8.13297359,83.529,83.488,75.42]
[1771413917254,8.13297359,83.529,83.48,2.0629219]
[1771413917255,8.13297359,83.529,83.481,75.42]
[1771413918358,8.13297359,83.529,83.48,2.0629219]
[1771413918562,2.0629219,83.51,83.47,2.0629219]
[1771413918758,8.13272961,83.519,83.47,2.0629219]
[1771413919158,8.13272961,83.519,83.48,2.0629219]
[1771413919355,8.14024053,83.532,83.49,2.0629219]
[1771413923264,8.14024053,83.532,83.5,2.0629219]
[1771413924470,8.14024053,83.532,83.49,2.0629219]
[1771413929473,8.09279366,83.529,83.486,75.42]
[1771413931878,8.09279366,83.529,83.49,2.06473675]
[1771413932374,8.09279366,83.529,83.486,75.42]
[1771413938481,8.09279366,83.529,83.49,2.06473675]
[1771413942782,7.98261139,83.544,83.5,2.06473675]
[1771413942993,7.98261139,83.559,83.52,2.06473675]
[1771413943496,7.98261139,83.559,83.521,75.42]
[1771413943696,7.98261139,83.559,83.53,2.06473675]
[1771413943897,18.75831139,83.559,83.521,75.42]
[1771413944094,18.75831139,83.559,83.52,2.06473675]
[1771413944095,7.98261139,83.559,83.52,2.06473675]
[1771413944296,7.98261139,83.559,83.521,75.42]
[1771413944698,8.01375092,83.579,83.53,2.06473675]
[1771413945293,10.7746,83.568,83.53,2.06473675]
[1771413945493,8.01375092,83.579,83.53,2.06473675]
[1771413946697,7.97558316,83.575,83.531,75.42]
[1771413947401,7.97558316,83.573,83.532,75.4]
[1771413948002,7.97550302,83.568,83.52,2.06473675]
[1771413948203,7.97550302,83.568,83.531,75.4]
[1771413949501,7.97550302,83.568,83.52,2.06473675]
[1771413949703,7.97550302,83.568,83.53,2.06473675]
[1771413949906,7.97550302,83.568,83.53,77.46473675]
[1771413952001,7.97550302,83.568,83.533,10.779]
[1771413954004,7.97550302,83.568,83.534,75.4]
[1771413954905,7.97550302,83.568,83.529,75.4]
[1771413955200,7.95742535,83.566,83.529,75.4]
[1771413955405,7.95742535,83.559,83.521,75.4]
[1771413955908,7.95736271,83.557,83.521,75.4]
[1771413960402,7.95736271,83.557,83.522,75.4]
[1771413960806,7.95736271,83.557,83.476,29.81379224]
[1771413960807,7.88561497,83.549,83.505,10.7825]
[1771413961109,7.88561497,83.549,83.506,75.4]
[1771413961307,7.88561497,83.549,83.507,75.4]
[1771413967412,7.88561497,83.549,83.52,2.06473675]
[1771413967719,7.88561497,83.549,83.51,2.06473675]
[1771413969312,7.88561497,83.549,83.5,2.06473675]
[1771413969513,7.88561497,83.549,83.51,77.46473675]
[1771413971918,7.88561497,83.549,83.51,2.06473675]
[1771413974819,7.88561497,83.549,83.511,75.4]
[1771413975022,35.95,83.611,83.473,21.5733]
[1771413975023,7.88052893,83.579,83.53,2.06473675]
[1771413976019,10.7736,83.575,83.53,2.06473675]
[1771413976217,7.88050552,83.574,83.53,2.06473675]
[1771413976732,2.99194285,83.617,83.44,52.01132499]
[1771413976733,7.73369162,83.549,83.506,75.4]
[1771413986432,7.73369162,83.549,83.507,75.4]
[1771413986633,7.73369162,83.549,83.51,2.06473675]
[1771413987324,7.66137169,83.561,83.52,2.06473675]
[1771413991035,10.7755,83.56,83.52,2.06473675]
[1771413992034,10.7755,83.56,83.52,2.0630321]
[1771413992535,7.6614656,83.559,83.52,2.0630321]
[1771413993233,7.7459706,83.55,83.51,77.4630321]
[1771413993433,21.5454,83.583,83.5,75.4]
[1771413993434,7.7459706,83.539,83.5,75.4]
[1771413993636,7.7459706,83.539,83.496,75.4]
[1771413994538,7.7459706,83.539,83.5,2.0630321]
[1771413994932,7.7459706,83.539,83.496,75.4]
[1771413996537,7.7459706,83.539,83.5,2.0630321]
[1771413996943,7.7459706,83.539,83.501,75.4]
[1771413998232,7.7459706,83.539,83.49,2.0630321]
[1771413998440,7.7459706,83.539,83.491,75.4]
[1771413998742,7.78089279,83.529,83.491,75.4]
[1771414003446,7.78089279,83.529,83.5,2.0630321]
[1771414004246,10.7784,83.538,83.5,2.0630321]
[1771414004452,7.72191353,83.542,83.51,2.0630321]
[1771414007947,10.79124985,83.601,83.504,75.42]
[1771414007948,7.78689655,83.565,83.52,2.0630321]
[1771414009055,7.78689655,83.565,83.53,2.0630321]
[1771414009551,7.85268012,83.579,83.532,10.7791]
[1771414009957,7.85268012,83.579,83.524,75.42]
[1771414009958,7.85268012,83.579,83.54,2.0630321]
[1771414010155,167.386,83.677,83.48,203.7298]
[1771414010156,7.85268012,83.609,83.57,2.0630321]
[1771414012759,7.99363926,83.607,83.57,2.0630321]
[1771414015466,7.99363926,83.607,83.58,2.0630321]
[1771414015967,7.99363926,83.607,83.57,2.0630321]
[1771414017864,7.99363926,83.607,83.58,2.0630321]
[1771414018359,7.99363926,83.607,83.56,10.7755]
[1771414018360,7.99363926,83.607,83.57,2.0630321]
[1771414019766,7.99363926,83.607,83.51,21.5638]
[1771414019974,7.99363926,83.607,83.56,2.0630321]
[1771414020465,7.07706773,83.599,83.551,75.38]
[1771414020770,7.07706773,83.599,83.56,2.0630321]
[1771414024665,7.07706773,83.599,83.482,11.99]
[1771414024666,6.96572012,83.589,83.54,2.0630321]
[1771414025065,6.96572012,83.589,83.56,2.0630321]
[1771414025374,6.96572012,83.609,83.56,2.0630321]
[1771414026676,6.93656273,83.605,83.56,2.0630321]
[1771414027876,6.93654676,83.603,83.56,2.0630321]
[1771414029672,10.7702,83.602,83.56,2.0630321]
[1771414029877,6.94661655,83.601,83.56,2.0630321]
[1771414030777,6.93836791,83.599,83.56,2.0630321]
[1771414031173,10.7704,83.6,83.56,2.0630321]
[1771414031174,6.93836791,83.596,83.56,2.0630321]
[1771414031375,6.93836791,83.596,83.542,10.7778]
[1771414031571,6.93836791,83.596,83.55,2.0630321]
[1771414034683,6.95218884,83.595,83.55,2.0630321]
[1771414034875,6.95218884,83.589,83.54,2.0630321]
[1771414035074,6.95218884,83.579,83.53,2.0630321]
[1771414035978,6.95218884,83.579,83.531,10.7792]
[1771414037186,6.95218884,83.579,83.53,2.0630321]
[1771414039481,6.95218884,83.579,83.532,10.779]
[1771414039683,6.95218884,83.579,83.53,2.0630321]
[1771414040782,6.92065998,83.577,83.53,2.0630321]
[1771414041681,6.92064835,83.584,83.55,2.0630321]
[1771414041885,2.0630321,83.6,83.55,2.0630321]
[1771414042085,6.92064835,83.599,83.55,2.0630321]
[1771414042785,6.91447976,83.598,83.55,2.0630321]
[1771414043279,6.91447976,83.598,83.508,21.5643]
[1771414043280,6.91447976,83.598,83.56,2.0630321]
[1771414044176,2.0630321,83.61,83.516,47.94]
[1771414044177,2.0630321,83.61,83.57,2.0630321]
[1771414044377,6.91446815,83.609,83.564,10.775]
[1771414046083,6.91446815,83.609,83.57,2.0630321]
[1771414047380,6.91446815,83.609,83.405,96.5924607]
[1771414047381,2.0630321,83.63,83.58,2.0630321]
[1771414047587,2.0630321,83.63,83.581,1.56245372]
[1771414048384,2.0630321,83.63,83.582,10.7726]
[1771414048788,2.0630321,83.63,83.582,12.30033678]
[1771414049386,6.38513056,83.629,83.582,12.30033678]
[1771414051891,6.38513056,83.629,83.586,10.7721]
[1771414055188,6.38513056,83.629,83.544,11.99]
[1771414055189,6.38513056,83.609,83.56,2.06003562]
[1771414055993,2.06003562,83.6,83.56,2.06003562]
[1771414056192,6.38513056,83.599,83.557,1.531732]
[1771414056690,6.38513056,83.599,83.564,10.7749]
[1771414056893,6.38513056,83.599,83.557,1.531732]
[1771414057697,6.38513056,83.599,83.557,12.307532]
[1771414058098,6.38513056,83.599,83.557,1.531732]
[1771414059197,6.38513056,83.589,83.545,1.73418521]
[1771414061087,6.38513056,83.586,83.54,2.06003562]
[1771414061387,6.38513056,83.579,83.535,10.7787]
[1771414064297,6.38513056,83.579,83.535,12.53204623]
[1771414064501,6.38513056,83.579,83.54,2.06003562]
[1771414066802,6.38513056,83.579,83.537,12.5324078]
[1771414067098,6.38513056,83.579,83.538,1.7540078]
[1771414068201,6.17944799,83.577,83.53,2.06003562]
[1771414068407,6.17944799,83.569,83.53,2.06003562]
[1771414070303,6.17944799,83.569,83.526,1.75404201]
[1771414072810,6.17944799,83.569,83.53,2.06003562]
[1771414077614,6.17944799,83.569,83.526,1.75404201]
[1771414082015,6.17944799,83.569,83.53,2.06003562]
[1771414083018,6.17944799,83.569,83.526,1.75404201]
[1771414084916,6.17944799,83.569,83.524,10.7801]
[1771414084917,2.06003562,83.56,83.51,2.06003562]
[1771414085115,6.33446488,83.549,83.51,2.06003562]
[1771414087117,6.33446488,83.549,83.506,1.66571507]
[1771414090114,12.83563562,83.56,83.511,1.70458264]
[1771414090423,6.33446488,83.559,83.511,1.70458264]
[1771414090924,6.33446488,83.555,83.511,1.70458264]
[1771414091723,10.7766,83.552,83.511,1.70458264]
[1771414092320,17.11106488,83.552,83.511,1.70458264]
[1771414092722,6.33446488,83.551,83.511,1.70458264]
[1771414097722,6.12829076,83.562,83.521,1.74529419]
[1771414098321,6.12829076,83.562,83.477,21.5723]
[1771414098322,6.12829076,83.559,83.511,1.74529419]
[1771414098927,6.12829076,83.549,83.511,1.74529419]
[1771414100325,6.12829076,83.562,83.521,1.76375522]
[1771414100734,6.12829076,83.562,83.501,75.4]
[1771414100735,6.12829076,83.562,83.531,1.72221034]
[1771414102736,6.12829076,83.559,83.52,1.72225263]
[1771414109340,6.12829076,83.6,83.544,1.65852929]
[1771414109647,6.12829076,83.589,83.544,1.65852929]
[1771414110036,10.7721,83.587,83.544,1.65852929]
[1771414110235,2.06003562,83.59,83.531,10.7792]
[1771414110236,6.12829076,83.579,83.531,1.65857901]
[1771414114748,2.06240914,83.61,83.55,1.39257718]
[1771414114957,6.12829076,83.599,83.551,1.39257718]
[1771414115650,6.12829076,83.599,83.56,3.45498632]
[1771414115847,6.12829076,83.599,83.57,2.06240914]
[1771414116054,6.12829076,83.61,83.58,2.06240914]
[1771414116254,6.12829076,83.629,83.59,2.06240914]
[1771414117854,6.12829076,83.629,83.581,1.39262021]
[1771414118061,6.12829076,83.629,83.59,2.06240914]
[1771414119351,12.13379534,83.684,83.567,75.38]
[1771414119352,6.12829076,83.659,83.62,2.06240914]
[1771414120261,6.12829076,83.659,83.63,2.06240914]
[1771414122259,6.12829076,83.659,83.62,2.06240914]
[1771414122661,6.12829076,83.659,83.621,1.38391149]
[1771414122856,6.12829076,83.659,83.63,2.06240914]
[1771414123155,6.12829076,83.669,83.62,2.06240914]
[1771414123562,6.12829076,83.669,83.63,2.06240914]
[1771414123764,6.12829076,83.669,83.621,1.38379973]
[1771414124366,6.12829076,83.699,83.65,2.06240914]
[1771414124561,6.12829076,83.699,83.641,1.38378604]
[1771414124865,6.12829076,83.699,83.65,2.06240914]
[1771414126061,6.63453242,83.679,83.63,2.06240914]
[1771414127165,2.06240914,83.67,83.628,1.70919333]
[1771414127362,2.06240914,83.67,83.62,2.06240914]
[1771414127363,6.63453242,83.669,83.62,2.06240914]
[1771414127865,2.06240914,83.66,83.615,1.72942182]
[1771414128057,6.63453242,83.659,83.615,1.72942182]
[1771414128658,6.63453242,83.686,83.615,1.72942182]
[1771414128866,8.69694156,83.68,83.631,1.81366736]
[1771414129169,8.69694156,83.68,83.568,167.6016]
[1771414129170,2.06240914,83.66,83.614,1.81366736]
[1771414129366,6.63453242,83.659,83.614,1.81366736]
[1771414130068,6.63453242,83.659,83.61,2.06240914]
[1771414133272,6.63453242,83.678,83.63,2.06240914]
[1771414133769,6.63453242,83.678,83.631,1.54270616]
[1771414133974,6.63453242,83.678,83.64,2.06240914]
[1771414134467,2.06240914,83.69,83.641,1.54270616]
[1771414135171,2.06240914,83.67,83.625,1.32050674]
[1771414135366,6.63453242,83.669,83.625,1.32050674]
[1771414136768,20.02666536,83.704,83.625,1.32050674]
[1771414137069,20.02666536,83.704,83.613,75.3]
[1771414137070,6.27889524,83.689,83.64,3.39456615]
[1771414138266,6.27889524,83.689,83.644,1.33218076]
[1771414138965,2.06240914,83.65,83.571,35.95]
[1771414139166,6.27889524,83.649,83.601,1.35224859]
[1771414139564,2.06240914,83.64,83.601,1.35224859]
[1771414140771,2.06240914,83.63,83.587,10.772]
[1771414143579,2.06240914,83.6,83.558,1.75015601]
[1771414144876,8.34130438,83.6,83.558,1.75015601]
[1771414145070,2.06240914,83.59,83.543,1.81457092]
[1771414145271,2.06240914,83.58,83.53,2.06240914]
[1771414145478,8.34130438,83.58,83.53,2.06240914]
[1771414145674,2.06240914,83.57,83.529,1.81457092]
[1771414148779,2.06240914,83.57,83.53,2.06240914]
[1771414150578,6.27889524,83.579,83.53,2.06240914]
[1771414150778,2.06240914,83.56,83.515,1.71509669]
[1771414152172,6.27889524,83.559,83.515,1.71509669]
[1771414152373,6.27889524,83.549,83.5,2.06240914]
[1771414152576,6.27889524,83.549,83.501,1.7153001]
[1771414158886,6.27889524,83.549,83.5,2.06240914]
[1771414162989,6.27889524,83.549,83.5,3.82860451]
[1771414163383,6.27889524,83.549,83.501,1.76619537]
[1771414167999,6.27889524,83.549,83.461,1.7596502]
[1771414168298,6.554702,83.529,83.481,1.7596502]
[1771414168494,6.554702,83.529,83.49,2.06240914]
[1771414169701,6.554702,83.549,83.5,3.95967066]
[1771414169998,6.554702,83.549,83.501,1.89726152]
[1771414175905,6.554702,83.549,83.502,1.83022108]
[1771414177804,6.554702,83.549,83.503,10.7828]
[1771414178809,6.554702,83.549,83.504,1.55928889]
[1771414179608,6.554702,83.549,83.507,10.7823]
[1771414180307,6.554702,83.549,83.504,1.55928889]
[1771414181404,6.554702,83.549,83.5,2.06374919]
[1771414181604,2.06374919,83.54,83.493,10.7841]
[1771414181804,6.554702,83.539,83.493,10.7841]
[1771414182611,6.554702,83.539,83.49,3.64788056]
[1771414182806,6.554702,83.539,83.491,1.59144]
[1771414183608,6.554702,83.539,83.492,1.59146628]
[1771414183906,6.554702,83.539,83.5,2.06374919]
[1771414184406,6.554702,83.539,83.492,1.59146628]
[1771414190518,6.554702,83.539,83.494,10.7839]
[1771414191718,6.554702,83.539,83.5,2.06374919]
[1771414193018,6.554702,83.539,83.51,2.06374919]
[1771414199219,6.554702,83.539,83.503,1.57878273]
[1771414199525,6.554702,83.539,83.51,2.06374919]
[1771414200122,6.10488987,83.559,83.52,2.06374919]
[1771414201121,6.10488987,83.559,83.514,75.4]
[1771414201322,2.06374919,83.55,83.501,10.7831]
[1771414201525,6.10488987,83.549,83.5,2.06374919]
[1771414201724,6.10488987,83.539,83.491,10.7843]
[1771414202119,2.06374919,83.53,83.475,1.49516245]
[1771414202423,6.10488987,83.529,83.48,2.06374919]
[1771414202625,6.10488987,83.529,83.5,2.06374919]
[1771414202930,6.10488987,83.554,83.52,2.06374919]
[1771414203530,6.10488987,83.554,83.483,29.37044485]
[1771414203531,6.10488987,83.549,83.5,2.06374919]
[1771414205926,6.10488987,83.549,83.49,75.4]
[1771414205927,2.06374919,83.54,83.49,2.06374919]
[1771414206127,6.10488987,83.539,83.49,2.06374919]
[1771414206431,6.10488987,83.529,83.48,2.06374919]
[1771414207030,6.10488987,83.529,83.49,2.06374919]
[1771414211038,6.10488987,83.529,83.491,10.7843]
[1771414211238,6.10488987,83.559,83.51,2.06374919]
[1771414211732,6.10488987,83.559,83.503,1.86780562]
[1771414211733,6.10488987,83.559,83.52,2.06374919]
[1771414212538,6.10488987,83.559,83.53,2.06374919]
[1771414215839,6.10488987,83.559,83.521,75.4]
[1771414217744,6.10488987,83.559,83.53,10.7793]
[1771414219241,6.10488987,83.559,83.522,10.7804]
[1771414221846,6.10488987,83.559,83.527,10.7796]
[1771414222444,2.06374919,83.57,83.528,1.89835757]
[1771414222845,6.51144291,83.569,83.528,1.89835757]
[1771414223839,6.51144291,83.559,83.521,75.4]
[1771414224348,6.51144291,83.559,83.523,10.7802]
[1771414225642,6.51144291,83.559,83.514,10.7814]
[1771414225846,6.51144291,83.559,83.515,75.38]
[1771414227951,6.51144291,83.549,83.515,75.38]
[1771414229756,6.51144291,83.549,83.5,2.06374919]
[1771414230051,6.51144291,83.549,83.501,75.38]
[1771414232650,6.51144291,83.529,83.48,2.06374919]
[1771414232843,6.51144291,83.519,83.481,75.38]
[1771414235153,6.51144291,83.519,83.482,75.4]
[1771414236556,6.51144291,83.519,83.482,77.07951417]
[1771414238654,6.51144291,83.519,83.483,75.4]
[1771414240458,6.51144291,83.519,83.483,77.10227854]
[1771414241456,6.51144291,83.519,83.484,1.74806038]
[1771414242257,6.51144291,83.519,83.483,75.4]
[1771414242463,2.06469334,83.52,83.473,75.4]
[1771414242761,2.06469334,83.54,83.501,32.11652549]
[1771414242963,2.06469334,83.55,83.501,32.11652549]
[1771414243158,2.06469334,83.56,83.511,32.11652549]
[1771414243863,10.7764,83.553,83.511,32.11652549]
[1771414245262,2.06469334,83.55,83.511,32.11652549]
[1771414249467,2.06469334,83.54,83.499,32.03481963]
[1771414249864,2.06469334,83.55,83.501,32.03016435]
[1771414250774,10.7778,83.543,83.501,32.03016435]
[1771414253273,10.7785,83.537,83.501,32.03016435]
[1771414260274,2.06469334,83.54,83.501,32.03016435]
[1771414261778,10.7783,83.539,83.501,32.03016435]
[1771414261974,2.06469334,83.53,83.494,75.4]
[1771414262178,2.06469334,83.52,83.495,75.4]
[1771414262880,2.06469334,83.53,83.495,75.4]
[1771414263581,10.7789,83.534,83.496,32.01079825]
[1771414263777,2.06469334,83.55,83.501,32.01079825]
[1771414264484,75.4,83.585,83.511,32.01079825]
[1771414264782,2.06469334,83.56,83.511,32.01079825]
[1771414265082,2.06469334,83.55,83.513,32.01094282]
[1771414267585,10.7767,83.552,83.513,32.01094282]
[1771414271786,2.06469334,83.57,83.513,32.01094282]
[1771414272084,2.06469334,83.57,83.521,32.02706618]
[1771414272585,10.91179057,83.623,83.531,32.02706618]
[1771414272784,2.06469334,83.58,83.533,32.00297456]
[1771414273186,2.06469334,83.58,83.535,32.00297456]
[1771414273385,2.06469334,83.58,83.537,32.00297456]
[1771414273686,2.06469334,83.58,83.539,32.00297456]
[1771414273882,2.06469334,83.57,83.51,2.06469334]
[1771414274091,2.06469334,83.54,83.491,32.00297456]
[1771414274289,2.06469334,83.53,83.492,107.40297456]
[1771414274481,2.06469334,83.53,83.494,32.00297456]
[1771414276682,2.99150799,83.579,83.52,2.06469334]
[1771414276877,2.06469334,83.59,83.531,32.02680369]
[1771414277085,2.06469334,83.59,83.541,32.02680369]
[1771414277285,2.06469334,83.6,83.551,32.02680369]
[1771414277986,10.7712,83.594,83.551,32.02680369]
[1771414280391,10.7712,83.594,83.56,2.06469334]
[1771414281695,2.06469334,83.59,83.537,31.70929912]
[1771414281894,2.06469334,83.58,83.54,2.06469334]
[1771414282094,2.06469334,83.58,83.537,31.70929912]
[1771414282289,10.7741,83.572,83.537,31.70929912]
[1771414282497,2.06469334,83.59,83.541,31.70929912]
[1771414283793,10.7728,83.581,83.541,31.70929912]
[1771414285495,10.7728,83.581,83.55,2.06469334]
[1771414285798,10.7728,83.581,83.55,33.80013713]
[1771414286896,10.7712,83.594,83.55,33.80013713]
[1771414287397,10.7712,83.594,83.56,33.7993916]
[1771414288595,10.7699,83.604,83.56,33.7993916]
[1771414288900,77.44469334,83.61,83.56,33.7993916]
[1771414289096,2.06469334,83.61,83.56,33.7993916]
[1771414289792,75.38,83.623,83.56,31.73469826]
[1771414289793,2.06469334,83.6,83.56,31.73469826]
[1771414289993,2.06469334,83.59,83.547,31.72904254]
[1771414290700,10.7718,83.589,83.547,31.72904254]
[1771414292496,10.7718,83.589,83.5,29.8112768]
[1771414292497,2.06469334,83.58,83.534,31.72763786]
[1771414292694,2.06469334,83.57,83.522,75.38]
[1771414292999,2.06469334,83.57,83.52,33.79191861]
[1771414293699,10.7755,83.56,83.52,33.79191861]
[1771414295598,10.7744,83.569,83.53,2.06469334]
[1771414295803,2.06469334,83.59,83.541,31.73550988]
[1771414296600,2.06469334,83.59,83.542,31.73550988]
[1771414296802,10.7734,83.577,83.542,31.73550988]
[1771414297596,10.7746,83.568,83.542,31.73550988]
[1771414297802,10.7746,83.568,83.536,75.38]
[1771414299300,2.06261194,83.62,83.561,31.72448821]
[1771414299501,21.5331,83.63,83.561,31.72448821]
[1771414299502,2.06261194,83.61,83.561,31.72448821]
[1771414300100,10.7714,83.593,83.551,75.38]
[1771414300405,10.7714,83.593,83.552,31.72448821]
[1771414301206,10.7714,83.593,83.554,31.6462258]
[1771414303807,2.06261194,83.59,83.541,31.64089015]
[1771414304111,2.06261194,83.58,83.541,31.64089015]
[1771414304309,75.38,83.61,83.541,31.64089015]
[1771414304511,2.06261194,83.59,83.541,31.64089015]
[1771414304907,10.7726,83.583,83.541,31.64089015]
[1771414307511,10.7734,83.576,83.541,31.64089015]
[1771414307807,2.06261194,83.58,83.541,31.64089015]
[1771414308012,2.06261194,83.57,83.534,75.38]
[1771414308307,75.38,83.607,83.534,107.10214596]
[1771414308507,75.38,83.607,83.53,2.06261194]
[1771414308508,2.06261194,83.58,83.535,31.72214596]
[1771414309706,10.7736,83.575,83.535,31.72214596]
[1771414309907,2.06261194,83.58,83.535,31.72214596]
[1771414310407,10.7758,83.558,83.535,31.72214596]
[1771414311008,2.06261194,83.58,83.535,31.72214596]
[1771414312517,10.7739,83.573,83.535,31.72214596]
[1771414317008,10.7748,83.566,83.535,31.72214596]
[1771414319319,2.06261194,83.56,83.51,2.06261194]
[1771414320618,2.06261194,83.58,83.53,2.06261194]
[1771414321213,2.06261194,83.58,83.531,22.62589907]
[1771414321721,10.7746,83.568,83.531,22.62589907]
[1771414321920,2.06261194,83.56,83.531,22.62589907]
[1771414322415,2.06261194,83.57,83.531,22.62589907]
[1771414323720,10.776,83.556,83.531,22.62589907]
[1771414324219,2.06261194,83.55,83.501,22.63415395]
[1771414324619,2.06261194,83.54,83.501,22.63415395]
[1771414326120,10.7777,83.544,83.501,22.63415395]
[1771414328924,2.06261194,83.53,83.482,22.61304096]
[1771414329426,2.06261194,83.54,83.491,22.61304096]
[1771414329625,10.7776,83.544,83.501,22.61304096]
[1771414330523,2.06261194,83.54,83.501,22.61304096]
[1771414331122,10.779,83.533,83.501,22.61304096]
[1771414331317,2.06261194,83.53,83.501,22.61304096]
[1771414333229,10.779,83.533,83.501,22.61304096]
[1771414337827,10.7805,83.522,83.486,22.58298166]
[1771414338028,2.06261194,83.52,83.486,22.58298166]
[1771414338925,2.06261194,83.53,83.486,22.58298166]
[1771414339829,10.7806,83.521,83.486,22.58298166]
[1771414345332,10.7813,83.515,83.486,22.58298166]
[1771414345835,10.7823,83.508,83.486,22.58298166]
[1771414346036,2.06261194,83.51,83.486,2.46168166]
[1771414346437,10.7823,83.508,83.486,2.46168166]
[1771414347643,10.783,83.503,83.486,8.166e-05]
[1771414350149,2.06261194,83.52,83.486,8.166e-05]
[1771414351153,10.7841,83.494,83.465,11.35870687]
[1771414351348,2.06261194,83.49,83.465,11.35870687]
[1771414351742,10.7841,83.494,83.465,11.35870687]
[1771414355750,2.06261194,83.49,83.465,6.87e-06]
[1771414355951,2.06261194,83.49,83.44,2.06261194]
[1771414356545,2.06261194,83.49,83.431,75.4]
[1771414356546,12.84731194,83.49,83.45,2.06261194]
[1771414356753,2.06261194,83.51,83.46,2.06261194]
[1771414357649,10.7841,83.494,83.46,2.06261194]
[1771414357853,10.7841,83.494,83.461,5.85208921]
[1771414358154,2.06261194,83.5,83.461,5.85208921]
[1771414358655,10.7857,83.481,83.461,5.85208921]
[1771414360251,10.7857,83.481,83.461,8.921e-05]
[1771414360452,2.24452664,83.485,83.407,29.8112768]
[1771414360652,2.24452664,83.479,83.43,2.06640734]
[1771414360852,10.7884,83.46,83.42,2.06640734]
[1771414362357,10.7884,83.46,83.421,3.63797069]
[1771414362556,10.7884,83.46,83.431,3.63797069]
[1771414365762,10.7894,83.453,83.42,5.9577068]
[1771414366159,10.7894,83.453,83.421,3.89129946]
[1771414367572,10.7885,83.46,83.421,3.89129946]
[1771414370376,2.25935692,83.468,83.421,3.89129946]
[1771414370377,10.7876,83.467,83.421,3.89129946]
[1771414370575,10.7876,83.467,83.43,2.06640734]
[1771414371276,10.7884,83.46,83.43,2.06640734]
[1771414371981,10.7884,83.46,83.421,3.89129946]
[1771414371982,10.7899,83.449,83.421,3.89129946]
[1771414372373,4.34410332,83.46,83.421,9.946e-05]
[1771414372578,3.89496152,83.449,83.4,2.06640734]
[1771414373179,10.791,83.44,83.4,2.06640734]
[1771414373680,10.7915,83.437,83.39,2.06640734]
[1771414373874,10.7915,83.437,83.4,2.06640734]
[1771414374473,10.7915,83.437,83.401,3.89129946]
[1771414374681,10.7922,83.431,83.401,3.89129946]
[1771414377279,10.7913,83.438,83.401,3.89129946]
[1771414378476,10.7901,83.448,83.401,3.89129946]
[1771414378874,10.7904,83.445,83.401,3.89129946]
[1771414379078,14.77055856,83.445,83.401,3.89129946]
[1771414380079,3.98015856,83.469,83.421,3.97699529]
[1771414380274,3.98015856,83.498,83.451,3.97699529]
[1771414381883,3.98015856,83.498,83.461,3.97699529]
[1771414382194,3.98015856,83.499,83.461,3.97699529]
[1771414382479,3.98015856,83.498,83.45,6.04340263]
[1771414382684,3.98015856,83.498,83.451,3.97699529]
[1771414382885,2.06640734,83.49,83.451,3.97699529]
[1771414383182,3.98015856,83.51,83.471,3.97699529]
[1771414383478,10.7797,83.528,83.481,3.97699529]
[1771414383683,3.98015856,83.537,83.491,3.97699529]
[1771414384286,10.7773,83.546,83.501,3.97699529]
[1771414384480,3.98015856,83.551,83.51,2.06640734]
[1771414384686,3.98015856,83.568,83.511,3.97699529]
[1771414385078,10.7751,83.564,83.521,3.97699529]
[1771414385283,2.06640734,83.58,83.53,2.06640734]
[1771414385480,3.98015856,83.581,83.541,3.97699529]
[1771414385682,167.3992,83.671,83.551,3.97699529]
[1771414385683,14.75115856,83.596,83.551,3.97699529]
[1771414386083,14.75195856,83.589,83.54,2.06640734]
[1771414386281,3.98015856,83.588,83.54,2.06640734]
[1771414386681,3.98015856,83.588,83.54,6.04340263]
[1771414387082,3.98015856,83.588,83.541,3.97699529]
[1771414387687,2.06640734,83.59,83.541,3.97699529]
[1771414387885,3.98015856,83.598,83.541,3.97699529]
[1771414390988,3.98015856,83.596,83.541,3.97699529]
[1771414391791,3.98015856,83.579,83.511,3.97699529]
[1771414393592,3.98015856,83.575,83.511,3.97699529]
[1771414394189,3.98015856,83.57,83.511,3.97699529]
[1771414394990,3.84160331,83.554,83.497,3.74357612]
[1771414395688,6.13561798,83.56,83.497,3.74357612]
[1771414395890,3.84160331,83.573,83.501,3.74357612]
[1771414396091,3.84160331,83.573,83.503,3.74357612]
[1771414396991,3.84160331,83.573,83.505,3.74357612]